[Event "Late-Titled-Tuesday-Blitz-November-28-2023"]
[Site "Chess.com"]
[Date "2023.11.28"]
[Round "1"]
[White "SmirnovTimofey2000"]
[Black "zverr1"]
[Result "0-1"]
[WhiteElo "2070"]
[BlackElo "2526"]
[TimeControl "180+1"]
[EndTime "14:07:44 PST"]
[Termination "zverr1 won by checkmate"]

1. d4 {[%clk 0:02:59.8]} 1... Nf6 {[%clk 0:02:59.6]} 2. Bf4 {[%clk 0:02:59.9]}
2... g6 {[%clk 0:02:59.7]} 3. Nc3 {[%clk 0:02:59.5]} 3... d5 {[%clk 0:02:59.8]}
4. e3 {[%clk 0:02:57.3]} 4... Bg7 {[%clk 0:02:59.7]} 5. h4 {[%clk 0:02:57.6]}
5... h6 {[%clk 0:02:59.8]} 6. Nf3 {[%clk 0:02:55.7]} 6... O-O {[%clk 0:02:58.3]}
7. Ne5 {[%clk 0:02:40.9]} 7... c6 {[%clk 0:02:58.2]} 8. g4 {[%clk 0:02:35.7]}
8... Ne4 {[%clk 0:02:55.7]} 9. Bd3 {[%clk 0:02:06.6]} 9... Nxc3 {[%clk
0:02:49.2]} 10. bxc3 {[%clk 0:02:06.7]} 10... Qa5 {[%clk 0:02:47.5]} 11. Qd2
{[%clk 0:02:03.5]} 11... c5 {[%clk 0:02:43.9]} 12. h5 {[%clk 0:01:49.9]} 12...
g5 {[%clk 0:02:28.7]} 13. Bg3 {[%clk 0:01:49.8]} 13... Nc6 {[%clk 0:02:13.7]}
14. f4 {[%clk 0:01:44.7]} 14... Nxe5 {[%clk 0:02:09.5]} 15. fxe5 {[%clk
0:01:42.3]} 15... Bxg4 {[%clk 0:02:03]} 16. e4 {[%clk 0:01:41.4]} 16... Bf3
{[%clk 0:01:42.5]} 17. Rf1 {[%clk 0:01:34.8]} 17... dxe4 {[%clk 0:01:37.1]} 18.
Be2 {[%clk 0:01:27.2]} 18... cxd4 {[%clk 0:01:30.7]} 19. cxd4 {[%clk 0:01:23.7]}
19... Qxd2+ {[%clk 0:01:28.4]} 20. Kxd2 {[%clk 0:01:23.8]} 20... Bxe2 {[%clk
0:01:22.7]} 21. Kxe2 {[%clk 0:01:24.7]} 21... Rac8 {[%clk 0:01:21.5]} 22. Rac1
{[%clk 0:01:23.2]} 22... f5 {[%clk 0:01:20.2]} 23. exf6 {[%clk 0:01:20]} 23...
exf6 {[%clk 0:01:20.1]} 24. Ke3 {[%clk 0:01:12.4]} 24... Rc3+ {[%clk 0:01:18.6]}
25. Kf2 {[%clk 0:01:09.4]} 25... f5 {[%clk 0:01:18.6]} 26. Bd6 {[%clk
0:00:54.9]} 26... Bxd4+ {[%clk 0:01:15.8]} 27. Kg2 {[%clk 0:00:47]} 27... Rf6
{[%clk 0:01:09.5]} 28. Be7 {[%clk 0:00:36.4]} 28... Rf7 {[%clk 0:01:05.3]} 29.
Bb4 {[%clk 0:00:36.3]} 29... Rc4 {[%clk 0:01:02.9]} 30. a3 {[%clk 0:00:35.8]}
30... Bc3 {[%clk 0:01:00.7]} 31. Rcd1 {[%clk 0:00:32.4]} 31... Bxb4 {[%clk
0:00:59.9]} 32. axb4 {[%clk 0:00:32.5]} 32... Rxb4 {[%clk 0:01:00.6]} 33. Rd8+
{[%clk 0:00:32.4]} 33... Kg7 {[%clk 0:01:00.8]} 34. Rfd1 {[%clk 0:00:29.5]}
34... Rc4 {[%clk 0:01:00.1]} 35. R1d2 {[%clk 0:00:24.7]} 35... f4 {[%clk
0:00:56]} 36. R8d6 {[%clk 0:00:21.4]} 36... Rc6 {[%clk 0:00:53.2]} 37. Rd8
{[%clk 0:00:16.7]} 37... e3 {[%clk 0:00:52.5]} 38. Rd1 {[%clk 0:00:13.9]} 38...
f3+ {[%clk 0:00:52.3]} 39. Kg3 {[%clk 0:00:12.6]} 39... Rxc2 {[%clk 0:00:53]}
40. Re8 {[%clk 0:00:11]} 40... f2 {[%clk 0:00:49.6]} 41. Rdd8 {[%clk 0:00:11.2]}
41... Rf3+ {[%clk 0:00:43.1]} 42. Kg4 {[%clk 0:00:08.8]} 42... Rc4+ {[%clk
0:00:40.4]} 43. Kxf3 {[%clk 0:00:05.3]} 43... f1=Q+ {[%clk 0:00:40]} 44. Kxe3
{[%clk 0:00:04.1]} 44... Qf4+ {[%clk 0:00:37.9]} 45. Kd3 {[%clk 0:00:03.9]}
45... Qf1+ {[%clk 0:00:29.3]} 46. Kd2 {[%clk 0:00:03]} 46... Qc1+ {[%clk
0:00:27.6]} 47. Ke2 {[%clk 0:00:02.3]} 47... Rc2+ {[%clk 0:00:26.2]} 48. Kd3
{[%clk 0:00:03]} 48... Qd1+ {[%clk 0:00:25.9]} 49. Ke3 {[%clk 0:00:03.7]} 49...
Re2+ {[%clk 0:00:26.2]} 50. Kf3 {[%clk 0:00:03.6]} 50... Qf1+ {[%clk 0:00:26.9]}
51. Kg3 {[%clk 0:00:03.6]} 51... Rg2+ {[%clk 0:00:27.7]} 52. Kh3 {[%clk
0:00:03.4]} 52... Qh1# {[%clk 0:00:28.6]} 0-1

[Event "Late-Titled-Tuesday-Blitz-November-28-2023"]
[Site "Chess.com"]
[Date "2023.11.28"]
[Round "1"]
[White "chrisclaireredfield"]
[Black "kai_nov"]
[Result "1-0"]
[WhiteElo "2574"]
[BlackElo "2242"]
[TimeControl "180+1"]
[EndTime "14:07:45 PST"]
[Termination "chrisclaireredfield won on time"]

1. Nf3 {[%clk 0:03:00.9]} 1... d5 {[%clk 0:02:59.5]} 2. g3 {[%clk 0:03:00.8]}
2... c6 {[%clk 0:02:50.3]} 3. Bg2 {[%clk 0:03:00.7]} 3... Nf6 {[%clk 0:02:51.2]}
4. c4 {[%clk 0:03:00.3]} 4... Bg4 {[%clk 0:02:50.2]} 5. cxd5 {[%clk 0:02:56.4]}
5... cxd5 {[%clk 0:02:50]} 6. Qb3 {[%clk 0:02:56.5]} 6... Qb6 {[%clk 0:02:25.6]}
7. Qxb6 {[%clk 0:02:55.8]} 7... axb6 {[%clk 0:02:25.4]} 8. O-O {[%clk
0:02:54.6]} 8... Bd7 {[%clk 0:02:11.1]} 9. d3 {[%clk 0:02:52.6]} 9... e6 {[%clk
0:02:10.4]} 10. Be3 {[%clk 0:02:47.7]} 10... Bc5 {[%clk 0:02:10.2]} 11. d4
{[%clk 0:02:38.6]} 11... Bd6 {[%clk 0:02:07.4]} 12. Nbd2 {[%clk 0:02:33.1]}
12... Na6 {[%clk 0:01:53.5]} 13. Rfc1 {[%clk 0:02:31]} 13... Ke7 {[%clk
0:01:52.7]} 14. Ne5 {[%clk 0:02:29.5]} 14... Rhc8 {[%clk 0:01:49.7]} 15. a3
{[%clk 0:02:24.7]} 15... h6 {[%clk 0:01:40.6]} 16. Nxd7 {[%clk 0:02:19.8]} 16...
Kxd7 {[%clk 0:01:36.2]} 17. Nf3 {[%clk 0:02:19.4]} 17... b5 {[%clk 0:01:21.7]}
18. Ne5+ {[%clk 0:02:18.4]} 18... Ke7 {[%clk 0:01:09.7]} 19. Kf1 {[%clk
0:02:16.5]} 19... b4 {[%clk 0:01:04.4]} 20. a4 {[%clk 0:02:16.4]} 20... Bxe5
{[%clk 0:00:55.4]} 21. dxe5 {[%clk 0:02:16.3]} 21... Nd7 {[%clk 0:00:56]} 22. f4
{[%clk 0:01:58.5]} 22... Nac5 {[%clk 0:00:54.8]} 23. Bd2 {[%clk 0:01:46.4]}
23... Kd8 {[%clk 0:00:37.6]} 24. Bxb4 {[%clk 0:01:43.2]} 24... Nb3 {[%clk
0:00:26]} 25. Rxc8+ {[%clk 0:01:42.5]} 25... Rxc8 {[%clk 0:00:26.2]} 26. Ra3
{[%clk 0:01:39.5]} 26... Rc1+ {[%clk 0:00:25.3]} 27. Kf2 {[%clk 0:01:37.1]}
27... Ndc5 {[%clk 0:00:20.2]} 28. Bxc5 {[%clk 0:01:00.7]} 28... Nxc5 {[%clk
0:00:21.1]} 29. b4 {[%clk 0:01:00.8]} 29... Na6 {[%clk 0:00:15.5]} 30. b5 {[%clk
0:01:00.9]} 30... Nc5 {[%clk 0:00:15.1]} 31. a5 {[%clk 0:01:01.1]} 31... Kc7
{[%clk 0:00:13.7]} 32. a6 {[%clk 0:00:57.1]} 32... bxa6 {[%clk 0:00:12.9]} 33.
bxa6 {[%clk 0:00:57.5]} 33... Kb8 {[%clk 0:00:12.1]} 34. f5 {[%clk 0:00:42.6]}
34... Ka7 {[%clk 0:00:11.1]} 35. g4 {[%clk 0:00:33.3]} 35... Nd7 {[%clk
0:00:06.8]} 36. e4 {[%clk 0:00:27.4]} 36... Nxe5 {[%clk 0:00:04.9]} 37. exd5
{[%clk 0:00:27.5]} 37... exd5 {[%clk 0:00:05.2]} 38. Bxd5 {[%clk 0:00:26.9]}
38... Nxg4+ {[%clk 0:00:05.2]} 39. Kg3 {[%clk 0:00:27.2]} 39... Ne5 {[%clk
0:00:04.7]} 40. Bb7 {[%clk 0:00:25]} 40... f6 {[%clk 0:00:03.6]} 41. Ra4 {[%clk
0:00:20]} 41... Rc3+ {[%clk 0:00:03.1]} 42. Kg2 {[%clk 0:00:19.8]} 42... Rc4
{[%clk 0:00:01.4]} 43. Ra5 {[%clk 0:00:18.4]} 43... Rc2+ {[%clk 0:00:01.3]} 44.
Kg1 {[%clk 0:00:16.1]} 44... Rc1+ {[%clk 0:00:01.5]} 45. Kf2 {[%clk 0:00:15.6]}
45... Rc2+ {[%clk 0:00:02.4]} 46. Kg3 {[%clk 0:00:15.7]} 46... Rc3+ {[%clk
0:00:02.6]} 47. Kf4 {[%clk 0:00:13.5]} 47... Rc4+ {[%clk 0:00:02.8]} 48. Ke3
{[%clk 0:00:13.5]} 48... Rc2 {[%clk 0:00:01.5]} 49. Rd5 {[%clk 0:00:12.6]} 1-0

[Event "Late-Titled-Tuesday-Blitz-November-28-2023"]
[Site "Chess.com"]
[Date "2023.11.28"]
[Round "1"]
[White "gabduschew"]
[Black "Byniolus"]
[Result "0-1"]
[WhiteElo "2423"]
[BlackElo "2790"]
[TimeControl "180+1"]
[EndTime "14:07:49 PST"]
[Termination "Byniolus won on time"]

1. b3 {[%clk 0:02:58.9]} 1... d5 {[%clk 0:03:00]} 2. Bb2 {[%clk 0:02:57.8]} 2...
Nf6 {[%clk 0:03:00.3]} 3. e3 {[%clk 0:02:56.4]} 3... Bf5 {[%clk 0:03:00.5]} 4.
Bd3 {[%clk 0:02:54.5]} 4... Bxd3 {[%clk 0:02:56.3]} 5. cxd3 {[%clk 0:02:54.1]}
5... e6 {[%clk 0:02:56.8]} 6. f4 {[%clk 0:02:49.3]} 6... Be7 {[%clk 0:02:54.9]}
7. Nf3 {[%clk 0:02:47.7]} 7... O-O {[%clk 0:02:55.5]} 8. O-O {[%clk 0:02:46.2]}
8... c5 {[%clk 0:02:53.5]} 9. Ne5 {[%clk 0:02:32.6]} 9... Nbd7 {[%clk
0:02:52.5]} 10. Nc3 {[%clk 0:02:24.9]} 10... Rc8 {[%clk 0:02:48.5]} 11. Qf3
{[%clk 0:02:16.9]} 11... Nxe5 {[%clk 0:02:41.4]} 12. fxe5 {[%clk 0:02:15.9]}
12... Nd7 {[%clk 0:02:42.3]} 13. Ne2 {[%clk 0:02:07.1]} 13... b5 {[%clk
0:02:29.5]} 14. Qg4 {[%clk 0:01:57.3]} 14... c4 {[%clk 0:02:11.1]} 15. d4 {[%clk
0:01:45.7]} 15... cxb3 {[%clk 0:01:53.7]} 16. axb3 {[%clk 0:01:44.9]} 16... Rc2
{[%clk 0:01:54]} 17. Bc1 {[%clk 0:01:34.3]} 17... a5 {[%clk 0:01:27.2]} 18. Nc3
{[%clk 0:01:29.4]} 18... b4 {[%clk 0:01:10.1]} 19. Na4 {[%clk 0:01:21.3]} 19...
Qc8 {[%clk 0:00:51.1]} 20. Qd1 {[%clk 0:01:14.4]} 20... Rc6 {[%clk 0:00:45.4]}
21. d3 {[%clk 0:01:10.2]} 21... f6 {[%clk 0:00:37.7]} 22. Bb2 {[%clk 0:01:04.8]}
22... f5 {[%clk 0:00:32.2]} 23. e4 {[%clk 0:00:58.6]} 23... fxe4 {[%clk
0:00:24.1]} 24. dxe4 {[%clk 0:00:58.2]} 24... Rxf1+ {[%clk 0:00:22.8]} 25. Kxf1
{[%clk 0:00:55.3]} 25... dxe4 {[%clk 0:00:14.7]} 26. d5 {[%clk 0:00:54.5]} 26...
Rc2 {[%clk 0:00:14.4]} 27. Kg1 {[%clk 0:00:46.5]} 27... e3 {[%clk 0:00:07.1]}
28. Qg4 {[%clk 0:00:39.9]} 28... Nf8 {[%clk 0:00:05.5]} 29. d6 {[%clk
0:00:38.1]} 29... Bd8 {[%clk 0:00:03.8]} 30. Rf1 {[%clk 0:00:25.1]} 30... e2
{[%clk 0:00:04]} 31. Re1 {[%clk 0:00:24.7]} 31... Qd7 {[%clk 0:00:03.7]} 32.
Rxe2 {[%clk 0:00:22.9]} 32... Rxe2 {[%clk 0:00:03.5]} 33. Qxe2 {[%clk
0:00:22.7]} 33... Ng6 {[%clk 0:00:04.3]} 34. Qc4 {[%clk 0:00:20.4]} 34... h6
{[%clk 0:00:03.7]} 35. Nc5 {[%clk 0:00:19.8]} 35... Qf7 {[%clk 0:00:03.8]} 36.
Qxe6 {[%clk 0:00:19]} 36... Bb6 {[%clk 0:00:04.1]} 37. Qxf7+ {[%clk 0:00:17.7]}
37... Kxf7 {[%clk 0:00:05]} 38. Bd4 {[%clk 0:00:17.8]} 38... Bxc5 {[%clk
0:00:05]} 39. Bxc5 {[%clk 0:00:17.5]} 39... Nxe5 {[%clk 0:00:05.4]} 40. Bb6
{[%clk 0:00:16.6]} 40... Nc6 {[%clk 0:00:05.7]} 41. Kf2 {[%clk 0:00:15.5]} 41...
Ke6 {[%clk 0:00:05.7]} 42. Bc7 {[%clk 0:00:14.5]} 42... a4 {[%clk 0:00:04.9]}
43. bxa4 {[%clk 0:00:06.7]} 43... b3 {[%clk 0:00:05.8]} 0-1

[Event "Late-Titled-Tuesday-Blitz-November-28-2023"]
[Site "Chess.com"]
[Date "2023.11.28"]
[Round "1"]
[White "GiorgianBarbosa"]
[Black "Elbebiber"]
[Result "1-0"]
[WhiteElo "2529"]
[BlackElo "2132"]
[TimeControl "180+1"]
[EndTime "14:07:53 PST"]
[Termination "GiorgianBarbosa won on time"]

1. d4 {[%clk 0:02:59.9]} 1... Nf6 {[%clk 0:02:54.9]} 2. Nf3 {[%clk 0:02:52.5]}
2... e6 {[%clk 0:02:52.9]} 3. e3 {[%clk 0:02:52.8]} 3... b6 {[%clk 0:02:47]} 4.
Bd3 {[%clk 0:02:48]} 4... Bb7 {[%clk 0:02:46]} 5. O-O {[%clk 0:02:48.9]} 5...
Be7 {[%clk 0:02:41.4]} 6. b3 {[%clk 0:02:46.9]} 6... O-O {[%clk 0:02:38]} 7. Bb2
{[%clk 0:02:47]} 7... c5 {[%clk 0:02:32.7]} 8. Nbd2 {[%clk 0:02:45.7]} 8... d6
{[%clk 0:02:24.7]} 9. a3 {[%clk 0:02:45.5]} 9... Nc6 {[%clk 0:02:19.6]} 10. c4
{[%clk 0:02:44]} 10... Re8 {[%clk 0:02:13.6]} 11. Qc2 {[%clk 0:02:40.3]} 11...
h6 {[%clk 0:02:12.5]} 12. Rfe1 {[%clk 0:02:21.6]} 12... e5 {[%clk 0:02:01.9]}
13. dxe5 {[%clk 0:02:17.5]} 13... dxe5 {[%clk 0:02:00.2]} 14. Nxe5 {[%clk
0:02:10.4]} 14... Nxe5 {[%clk 0:01:43.6]} 15. Bxe5 {[%clk 0:02:11.3]} 15... Qd7
{[%clk 0:01:42.1]} 16. Bf5 {[%clk 0:01:55.8]} 16... Qc6 {[%clk 0:01:33.5]} 17.
Nf3 {[%clk 0:01:56.3]} 17... Bf8 {[%clk 0:01:25.4]} 18. Bb2 {[%clk 0:01:44.4]}
18... Rad8 {[%clk 0:01:21.4]} 19. Rad1 {[%clk 0:01:42.1]} 19... Ne4 {[%clk
0:01:09.3]} 20. Bxe4 {[%clk 0:00:50.3]} 20... Qxe4 {[%clk 0:01:07.4]} 21. Qxe4
{[%clk 0:00:50.3]} 21... Bxe4 {[%clk 0:01:07.5]} 22. Rxd8 {[%clk 0:00:36.3]}
22... Rxd8 {[%clk 0:01:08.4]} 23. Rc1 {[%clk 0:00:35.9]} 23... f6 {[%clk
0:01:01.5]} 24. Bc3 {[%clk 0:00:35.2]} 24... Kf7 {[%clk 0:00:55.7]} 25. Kf1
{[%clk 0:00:35.1]} 25... Be7 {[%clk 0:00:45.7]} 26. Ke1 {[%clk 0:00:35]} 26...
Rd7 {[%clk 0:00:44.4]} 27. Rd1 {[%clk 0:00:35]} 27... Ke6 {[%clk 0:00:41.5]} 28.
Rxd7 {[%clk 0:00:34.2]} 28... Kxd7 {[%clk 0:00:41.7]} 29. Kd2 {[%clk 0:00:30.7]}
29... Bd6 {[%clk 0:00:41.1]} 30. Ke2 {[%clk 0:00:23.1]} 30... Ke6 {[%clk
0:00:38.3]} 31. g3 {[%clk 0:00:20.7]} 31... Bc2 {[%clk 0:00:37.3]} 32. Nd2
{[%clk 0:00:20.9]} 32... Bg6 {[%clk 0:00:29.7]} 33. e4 {[%clk 0:00:20.2]} 33...
Bc7 {[%clk 0:00:27.2]} 34. f4 {[%clk 0:00:20.1]} 34... Bf7 {[%clk 0:00:27]} 35.
Ke3 {[%clk 0:00:20.3]} 35... Kd7 {[%clk 0:00:27.5]} 36. Nf3 {[%clk 0:00:19.9]}
36... Bd6 {[%clk 0:00:26.8]} 37. e5 {[%clk 0:00:20.1]} 37... Be7 {[%clk
0:00:24.8]} 38. exf6 {[%clk 0:00:20]} 38... gxf6 {[%clk 0:00:25.5]} 39. Nh4
{[%clk 0:00:20.1]} 39... Be6 {[%clk 0:00:23.9]} 40. f5 {[%clk 0:00:18.8]} 40...
Bf7 {[%clk 0:00:23.4]} 41. Ng6 {[%clk 0:00:18.6]} 41... Bd6 {[%clk 0:00:23]} 42.
Kf3 {[%clk 0:00:17.9]} 42... b5 {[%clk 0:00:17.6]} 43. cxb5 {[%clk 0:00:15.4]}
43... Bxb3 {[%clk 0:00:17.2]} 44. Bxf6 {[%clk 0:00:16]} 44... c4 {[%clk
0:00:17.7]} 45. Bc3 {[%clk 0:00:13.2]} 45... Bxa3 {[%clk 0:00:17.1]} 46. g4
{[%clk 0:00:13.6]} 46... Ba4 {[%clk 0:00:16.3]} 47. h4 {[%clk 0:00:12.5]} 47...
Bxb5 {[%clk 0:00:16.2]} 48. g5 {[%clk 0:00:12]} 48... hxg5 {[%clk 0:00:16.4]}
49. h5 {[%clk 0:00:12.3]} 49... Ke8 {[%clk 0:00:09.6]} 50. h6 {[%clk 0:00:12.6]}
50... Bc6+ {[%clk 0:00:07.1]} 51. Kg4 {[%clk 0:00:11.1]} 1-0

[Event "Late-Titled-Tuesday-Blitz-November-28-2023"]
[Site "Chess.com"]
[Date "2023.11.28"]
[Round "1"]
[White "OneTrickPony_82"]
[Black "Bauman_Guy"]
[Result "1-0"]
[WhiteElo "2493"]
[BlackElo "2868"]
[TimeControl "180+1"]
[EndTime "14:08:19 PST"]
[Termination "OneTrickPony_82 won by resignation"]

1. d4 {[%clk 0:03:00.9]} 1... Nf6 {[%clk 0:02:59.8]} 2. c4 {[%clk 0:03:00.9]}
2... e6 {[%clk 0:02:59.8]} 3. Nf3 {[%clk 0:03:01.6]} 3... d5 {[%clk 0:02:59.2]}
4. Nc3 {[%clk 0:03:01.4]} 4... c5 {[%clk 0:02:59]} 5. cxd5 {[%clk 0:03:00.5]}
5... Nxd5 {[%clk 0:02:58.9]} 6. e4 {[%clk 0:02:59.9]} 6... Nxc3 {[%clk
0:02:58.9]} 7. bxc3 {[%clk 0:03:00.8]} 7... cxd4 {[%clk 0:02:59.5]} 8. cxd4
{[%clk 0:03:01.5]} 8... Bb4+ {[%clk 0:02:59.9]} 9. Bd2 {[%clk 0:03:02.1]} 9...
Bxd2+ {[%clk 0:03:00.5]} 10. Qxd2 {[%clk 0:03:02.7]} 10... O-O {[%clk
0:03:00.7]} 11. Rd1 {[%clk 0:03:02.8]} 11... Nd7 {[%clk 0:02:55.9]} 12. Bd3
{[%clk 0:03:02.2]} 12... b6 {[%clk 0:02:54.3]} 13. O-O {[%clk 0:03:02.2]} 13...
Bb7 {[%clk 0:02:54]} 14. Rfe1 {[%clk 0:02:56.2]} 14... Rc8 {[%clk 0:02:53.7]}
15. a4 {[%clk 0:02:54.6]} 15... Qc7 {[%clk 0:02:50.8]} 16. Rc1 {[%clk
0:02:34.1]} 16... Qb8 {[%clk 0:02:49.1]} 17. a5 {[%clk 0:02:31.1]} 17... h6
{[%clk 0:02:45.2]} 18. h3 {[%clk 0:02:15.8]} 18... Rfd8 {[%clk 0:02:43.6]} 19.
Ra1 {[%clk 0:01:52.8]} 19... Qc7 {[%clk 0:02:32.7]} 20. Rec1 {[%clk 0:01:50.2]}
20... Qd6 {[%clk 0:02:32.5]} 21. axb6 {[%clk 0:01:37.8]} 21... axb6 {[%clk
0:02:32]} 22. Qb2 {[%clk 0:01:35]} 22... Qb8 {[%clk 0:02:17.9]} 23. Nd2 {[%clk
0:01:27]} 23... Qf4 {[%clk 0:02:09.5]} 24. g3 {[%clk 0:01:10.8]} 24... Qf6
{[%clk 0:02:01.7]} 25. e5 {[%clk 0:01:04.9]} 25... Qg5 {[%clk 0:01:52.7]} 26.
Be4 {[%clk 0:00:46.8]} 26... Nc5 {[%clk 0:01:34.4]} 27. Rxc5 {[%clk 0:00:34.3]}
27... bxc5 {[%clk 0:01:31.7]} 28. Bxb7 {[%clk 0:00:34]} 28... Rb8 {[%clk
0:01:30.1]} 29. Ne4 {[%clk 0:00:32.4]} 29... Qf5 {[%clk 0:01:26.7]} 30. Nd6
{[%clk 0:00:29.7]} 30... Qxh3 {[%clk 0:00:52.6]} 31. dxc5 {[%clk 0:00:24.1]}
31... h5 {[%clk 0:00:53.1]} 32. c6 {[%clk 0:00:20.1]} 32... h4 {[%clk
0:00:53.4]} 33. Ra3 {[%clk 0:00:19.1]} 33... Qg4 {[%clk 0:00:26.9]} 34. c7
{[%clk 0:00:18.4]} 34... h3 {[%clk 0:00:27.5]} 35. cxd8=Q+ {[%clk 0:00:17.3]}
35... Rxd8 {[%clk 0:00:28.4]} 36. Qd2 {[%clk 0:00:16.6]} 36... Kh7 {[%clk
0:00:23.1]} 37. Ra8 {[%clk 0:00:16.1]} 37... Rd7 {[%clk 0:00:21.3]} 38. Bh1
{[%clk 0:00:14.7]} 38... Rc7 {[%clk 0:00:20.6]} 39. Ra1 {[%clk 0:00:14.4]} 39...
g6 {[%clk 0:00:20.5]} 40. Rd1 {[%clk 0:00:13.5]} 40... Kg7 {[%clk 0:00:19.7]}
41. Kh2 {[%clk 0:00:13.6]} 41... Ra7 {[%clk 0:00:18.7]} 42. Rf1 {[%clk
0:00:12.6]} 42... Ra3 {[%clk 0:00:18.2]} 43. Qf4 {[%clk 0:00:12.8]} 43... Qxf4
{[%clk 0:00:16.8]} 44. gxf4 {[%clk 0:00:12.7]} 44... Ra4 {[%clk 0:00:17.7]} 45.
Ne4 {[%clk 0:00:12.8]} 45... Kh6 {[%clk 0:00:16.1]} 46. Kxh3 {[%clk 0:00:13]}
46... Kh5 {[%clk 0:00:17]} 47. Kg3 {[%clk 0:00:13.4]} 47... Ra3+ {[%clk
0:00:16.7]} 48. Bf3+ {[%clk 0:00:14.3]} 48... Kh6 {[%clk 0:00:17.5]} 49. Rh1+
{[%clk 0:00:14.5]} 49... Kg7 {[%clk 0:00:18.4]} 50. Nf6 {[%clk 0:00:13.9]} 50...
Kf8 {[%clk 0:00:16.8]} 51. Rh8+ {[%clk 0:00:14.5]} 51... Kg7 {[%clk 0:00:17.7]}
52. Rg8+ {[%clk 0:00:13.8]} 52... Kh6 {[%clk 0:00:18.6]} 53. Rh8+ {[%clk
0:00:13.5]} 53... Kg7 {[%clk 0:00:19.5]} 54. Rh7+ {[%clk 0:00:13.8]} 54... Kf8
{[%clk 0:00:20.3]} 55. Kg4 {[%clk 0:00:13.6]} 55... Ra2 {[%clk 0:00:19.5]} 56.
Rh8+ {[%clk 0:00:13.7]} 56... Kg7 {[%clk 0:00:19.5]} 57. Rg8+ {[%clk 0:00:14]}
57... Kh6 {[%clk 0:00:20.1]} 58. Rf8 {[%clk 0:00:14.7]} 58... Kg7 {[%clk
0:00:21]} 59. Re8 {[%clk 0:00:14.7]} 59... Rxf2 {[%clk 0:00:20.6]} 60. Kg5
{[%clk 0:00:14]} 60... Rg2+ {[%clk 0:00:15.7]} 61. Kh4 {[%clk 0:00:14.2]} 61...
Rf2 {[%clk 0:00:15.5]} 62. Kg3 {[%clk 0:00:14.5]} 62... Rf1 {[%clk 0:00:15.5]}
63. Rg8+ {[%clk 0:00:14.3]} 63... Kh6 {[%clk 0:00:16.1]} 64. Rf8 {[%clk
0:00:14.3]} 64... Kg7 {[%clk 0:00:17]} 65. Re8 {[%clk 0:00:14.7]} 65... Rg1+
{[%clk 0:00:17.1]} 66. Kf2 {[%clk 0:00:14.2]} 66... Ra1 {[%clk 0:00:16.6]} 67.
Re7 {[%clk 0:00:14.3]} 67... Kf8 {[%clk 0:00:16.4]} 68. Rc7 {[%clk 0:00:13.8]}
68... Kg7 {[%clk 0:00:17.3]} 69. Ne4 {[%clk 0:00:13.6]} 69... Ra8 {[%clk
0:00:16.1]} 70. Ng5 {[%clk 0:00:13.2]} 70... Rf8 {[%clk 0:00:17]} 71. Nxe6+
{[%clk 0:00:13.3]} 1-0